[Event "EWIRCC 2019"]
[Site "Monte-Carlo"]
[Date "2019.12.01"]
[Round "9.4"]
[White "Bodnaruk, Anastasia"]
[Black "Zhukova, Natalia"]
[Result "1/2-1/2"]
[ECO "C50"]
[WhiteElo "2412"]
[BlackElo "2323"]
[Annotator "ChessBase"]
[PlyCount "72"]
[EventDate "2019.11.28"]
[EventType "swiss"]
[EventCountry "MNC"]
[SourceTitle "playchess.com"]
[Source "ChessBase"]
[SourceQuality "1"]
[TimeControl "5400+30"]

1. e4 {[%emt 1:15:11]} e5 {[%emt 1:15:11]} 2. Nf3 {[%emt 0:00:21]} Nc6 {[%emt 0:00:22]} 3. Bc4 {[%emt 0:00:22]} Nf6 {[%emt 0:00:24]} 4. d3 {[%emt 0:00:21]} Bc5 {[%emt 0:00:25]} 5. Bg5 {[%emt 0:00:48]} h6 {[%emt 0:00:53]} 6. Bh4 {[%emt 0:00:23]} Be7 {[%emt 0:01:28]} 7. c3 {[%emt 0:02:16]} O-O {[%emt 0:00:32]} 8. O-O {[%emt 0:00:33]} d6 {[%emt 0:01:04]} 9. a4 {[%emt 0:00:23]} Nh5 {[%emt 0:00:42]} 10. Bg3 {[%emt 0:01:06]} Nxg3 {[%emt 0:00:47]} 11. fxg3 {[%emt 0:00:45]} Na5 {[%emt 0:02:09]} 12. Bd5 {[%emt 0:00:45]} c6 {[%emt 0:00:30]} 13. Ba2 {[%emt 0:00:22]} c5 {[%emt 0:05:33]} 14. Rf2 {[%emt 0:02:12]} Kh8 {[%emt 0:00:55]} 15. Nbd2 {[%emt 0:01:16]} f5 {[%emt 0:00:22]} 16. Bd5 {[%emt 0:00:25]} f4 {[%emt 0:00:39]} 17. gxf4 {[%emt 0:00:47]} Rxf4 {[%emt 0:00:21]} 18. Nf1 {[%emt 0:00:58]} Nc6 {[%emt 0:00:49]} 19. Ne3 {[%emt 0:00:42]} Bd7 {[%emt 0:00:32]} 20. Ba2 {[%emt 0:01:14]} Rf8 {[%emt 0:00:40]} 21. Qe2 {[%emt 0:00:43]} Qe8 {[%emt 0:02:19]} 22. Raf1 {[%emt 0:01:52]} Qh5 {[%emt 0:00:23]} 23. Nd5 {[%emt 0:01:04]} Bg4 {[%emt 0:01:02]} 24. h3 {[%emt 0:01:19]} Bxf3 {[%emt 0:00:23]} 25. Rxf3 {[%emt 0:00:21]} Rxf3 {[%emt 0:01:07]} 26. Rxf3 {[%emt 0:02:24]} Kh7 {[%emt 0:02:37]} 27. Qf1 {[%emt 0:00:22]} Bg5 {[%emt 0:00:46]} 28. Rf7 {[%emt 0:00:47]} Qh4 {[%emt 0:00:47]} 29. Rxb7 {[%emt 0:03:00]} Ne7 {[%emt 0:00:21]} 30. Nxe7 {[%emt 0:01:27]} Bxe7 {[%emt 0:00:26]} 31. Qf7 {[%emt 0:00:28]} Rf8 {[%emt 0:00:39]} 32. Qxe7 {[%emt 0:00:29]} Qf2+ {[%emt 0:00:21]} 33. Kh1 {[%emt 0:00:46]} Qf1+ {[%emt 0:00:33]} 34. Kh2 {[%emt 0:00:21]} Qf4+ {[%emt 0:00:21]} 35. Kh1 {[%emt 0:00:36]} Qf1+ {[%emt 0:00:27]} 36. Kh2 {[%emt 0:00:20]} Qf4+ {[%emt 0:00:22]} 1/2-1/2

[Event "EWIRCC 2019"]
[Site "Monte-Carlo"]
[Date "2019.12.01"]
[Round "9.5"]
[White "Muzychuk, Anna"]
[Black "Berend, Elvira"]
[Result "1-0"]
[ECO "A03"]
[WhiteElo "2543"]
[BlackElo "2349"]
[Annotator "ChessBase"]
[PlyCount "99"]
[EventDate "2019.11.28"]
[EventType "swiss"]
[EventCountry "MNC"]
[SourceTitle "playchess.com"]
[Source "ChessBase"]
[SourceQuality "1"]
[TimeControl "5400+30"]

1. f4 {[%emt 1:15:11]} d5 {[%emt 1:15:23]} 2. Nf3 {[%emt 0:00:21]} Nf6 {[%emt 0:00:22]} 3. g3 {[%emt 0:00:21]} g6 {[%emt 0:00:42]} 4. Bg2 {[%emt 0:00:21]} Bg7 {[%emt 0:00:21]} 5. O-O {[%emt 0:00:21]} c6 {[%emt 0:00:23]} 6. e3 {[%emt 0:00:29]} Bg4 {[%emt 0:00:31]} 7. d3 {[%emt 0:00:27]} Bxf3 {[%emt 0:00:26]} 8. Qxf3 {[%emt 0:00:23]} O-O {[%emt 0:00:25]} 9. e4 {[%emt 0:00:32]} e6 {[%emt 0:02:17]} 10. Nc3 {[%emt 0:01:50]} Na6 {[%emt 0:00:36]} 11. Kh1 {[%emt 0:00:43]} Qb6 {[%emt 0:03:39]} 12. a3 {[%emt 0:01:23]} Nd7 {[%emt 0:00:48]} 13. e5 {[%emt 0:01:22]} c5 {[%emt 0:01:10]} 14. Nd1 {[%emt 0:00:32]} Nc7 {[%emt 0:00:53]} 15. Ne3 {[%emt 0:01:11]} f5 {[%emt 0:00:39]} 16. exf6 {[%emt 0:00:56]} Nxf6 {[%emt 0:00:35]} 17. Rb1 {[%emt 0:00:40]} Rae8 {[%emt 0:00:49]} 18. c4 {[%emt 0:01:02]} Qb3 {[%emt 0:00:40]} 19. Qd1 {[%emt 0:01:25]} Qxd1 {[%emt 0:00:22]} 20. Rxd1 {[%emt 0:00:21]} b6 {[%emt 0:01:09]} 21. b4 {[%emt 0:00:48]} cxb4 {[%emt 0:01:54]} 22. axb4 {[%emt 0:00:22]} Rd8 {[%emt 0:00:31]} 23. Ba3 {[%emt 0:01:32]} d4 {[%emt 0:00:41]} 24. Nf1 {[%emt 0:00:33]} Ng4 {[%emt 0:01:03]} 25. Kg1 {[%emt 0:00:39]} Ne3 {[%emt 0:00:42]} 26. Rdc1 {[%emt 0:03:27]} Nxg2 {[%emt 0:01:01]} 27. Kxg2 {[%emt 0:00:24]} e5 {[%emt 0:00:29]} 28. b5 {[%emt 0:00:32]} Rfe8 {[%emt 0:00:26]} 29. fxe5 {[%emt 0:00:33]} Rxe5 {[%emt 0:00:59]} 30. Re1 {[%emt 0:00:23]} Rxe1 {[%emt 0:00:56]} 31. Rxe1 {[%emt 0:00:21]} Bf8 {[%emt 0:00:21]} 32. Ra1 {[%emt 0:01:05]} Bxa3 {[%emt 0:00:34]} 33. Rxa3 {[%emt 0:00:21]} Ra8 {[%emt 0:00:42]} 34. Nd2 {[%emt 0:00:31]} a6 {[%emt 0:00:22]} 35. Nb3 {[%emt 0:01:05]} axb5 {[%emt 0:04:39]} 36. Rxa8+ Nxa8 {[%emt 0:00:00]} 37. cxb5 {[%emt 0:00:45]} Nc7 {[%emt 0:00:00]} 38. Nxd4 {[%emt 0:00:24]} Kf7 {[%emt 0:00:00]} 39. Kf3 {[%emt 0:00:23]} Ke7 {[%emt 0:00:00]} 40. Ke4 {[%emt 0:00:42]} Kd6 {[%emt 0:00:00]} 41. g4 {[%emt 0:00:27]} Nd5 {[%emt 0:00:00]} 42. Ne2 {[%emt 0:02:58]} Nc7 {[%emt 0:00:21]} 43. Nc3 {[%emt 0:00:33]} Kc5 {[%emt 0:00:26]} 44. Ke5 {[%emt 0:01:26]} Kb4 {[%emt 0:02:18]} 45. Nd5+ {[%emt 0:00:35]} Nxd5 {[%emt 0:00:22]} 46. Kxd5 {[%emt 0:00:21]} Kxb5 {[%emt 0:00:21]} 47. d4 {[%emt 0:00:21]} g5 {[%emt 0:01:52]} 48. Ke6 {[%emt 0:00:37]} Kc6 {[%emt 0:00:31]} 49. d5+ {[%emt 0:00:22]} Kc7 {[%emt 0:00:21]} 50. Ke7 {[%emt 0:00:21]} 1-0

[Event "EWIRCC 2019"]
[Site "Monte-Carlo"]
[Date "2019.12.01"]
[Round "9.6"]
[White "Muzychuk, Mariya"]
[Black "Guichard, Pauline"]
[Result "1-0"]
[ECO "C45"]
[WhiteElo "2552"]
[BlackElo "2407"]
[Annotator "ChessBase"]
[PlyCount "107"]
[EventDate "2019.11.28"]
[EventType "swiss"]
[EventCountry "MNC"]
[SourceTitle "playchess.com"]
[Source "ChessBase"]
[SourceQuality "1"]
[TimeControl "5400+30"]

1. e4 {[%emt 1:15:11]} e5 {[%emt 1:15:11]} 2. Nf3 {[%emt 0:00:21]} Nc6 {[%emt 0:00:22]} 3. d4 {[%emt 0:00:22]} exd4 {[%emt 0:00:23]} 4. Nxd4 {[%emt 0:00:21]} Nf6 {[%emt 0:00:29]} 5. Nxc6 {[%emt 0:00:21]} bxc6 {[%emt 0:00:22]} 6. e5 {[%emt 0:00:20]} Qe7 {[%emt 0:00:22]} 7. Qe2 {[%emt 0:00:21]} Nd5 {[%emt 0:00:27]} 8. c4 {[%emt 0:00:21]} Nb6 {[%emt 0:00:26]} 9. Nc3 {[%emt 0:00:21]} Ba6 {[%emt 0:00:49]} 10. b3 {[%emt 0:00:45]} Qe6 {[%emt 0:01:24]} 11. Qe4 {[%emt 0:01:05]} Bb4 {[%emt 0:00:51]} 12. Bd2 {[%emt 0:00:21]} Bxc3 {[%emt 0:01:41]} 13. Bxc3 {[%emt 0:00:21]} d5 {[%emt 0:00:27]} 14. Qh4 {[%emt 0:00:21]} dxc4 {[%emt 0:01:14]} 15. Be2 {[%emt 0:00:21]} O-O {[%emt 0:02:13]} 16. O-O {[%emt 0:00:22]} Nd5 {[%emt 0:02:55]} 17. Bxc4 {[%emt 0:00:33]} Bxc4 {[%emt 0:00:22]} 18. Qxc4 {[%emt 0:00:22]} Nxc3 {[%emt 0:00:31]} 19. Qxc3 {[%emt 0:00:21]} Rfe8 {[%emt 0:00:21]} 20. Rfe1 {[%emt 0:01:10]} Rad8 {[%emt 0:00:22]} 21. Rac1 {[%emt 0:00:25]} Rd5 {[%emt 0:00:39]} 22. Qxc6 {[%emt 0:01:10]} Rxe5 {[%emt 0:00:24]} 23. Rxe5 {[%emt 0:00:35]} Qxe5 {[%emt 0:00:24]} 24. g3 {[%emt 0:00:28]} Rd8 {[%emt 0:01:22]} 25. Kg2 {[%emt 0:01:03]} h5 {[%emt 0:01:35]} 26. h4 {[%emt 0:03:54]} Rd2 {[%emt 0:02:23]} 27. Qa8+ {[%emt 0:03:03]} Kh7 {[%emt 0:00:21]} 28. Qxa7 {[%emt 0:01:16]} Qd5+ {[%emt 0:01:02]} 29. Kg1 {[%emt 0:00:41]} c5 {[%emt 0:00:21]} 30. Qe7 {[%emt 0:01:13]} g6 {[%emt 0:02:41]} 31. Qg5 {[%emt 0:01:21]} Qd4 {[%emt 0:02:03]} 32. Qxc5 {[%emt 0:00:55]} Qxc5 {[%emt 0:00:22]} 33. Rxc5 {[%emt 0:00:21]} Rxa2 {[%emt 0:00:22]} 34. Rc7 {[%emt 0:00:24]} Kg7 {[%emt 0:00:34]} 35. Kg2 {[%emt 0:00:21]} Rb2 {[%emt 0:00:45]} 36. Rb7 {[%emt 0:00:21]} Kf6 {[%emt 0:00:21]} 37. Kf3 {[%emt 0:00:21]} Ke6 {[%emt 0:00:27]} 38. Ke3 {[%emt 0:00:43]} f6 {[%emt 0:00:21]} 39. Rb6+ {[%emt 0:00:51]} Kf5 {[%emt 0:00:37]} 40. Rb5+ {[%emt 0:00:31]} Ke6 {[%emt 0:00:21]} 41. b4 {[%emt 0:01:24]} Kd6 {[%emt 0:01:02]} 42. Rb8 {[%emt 0:00:28]} Ke5 {[%emt 0:00:41]} 43. b5 {[%emt 0:00:42]} Rb3+ {[%emt 0:00:42]} 44. Ke2 {[%emt 0:00:21]} Rb2+ {[%emt 0:00:21]} 45. Kf3 {[%emt 0:00:21]} Rb3+ {[%emt 0:00:23]} 46. Kg2 {[%emt 0:00:21]} g5 {[%emt 0:00:57]} 47. hxg5 {[%emt 0:00:48]} fxg5 {[%emt 0:00:21]} 48. b6 {[%emt 0:00:21]} Kf6 {[%emt 0:00:32]} 49. b7 {[%emt 0:02:12]} Kg7 {[%emt 0:00:21]} 50. f4 {[%emt 0:00:21]} h4 {[%emt 0:00:42]} 51. f5 {[%emt 0:00:38]} Rb2+ {[%emt 0:00:39]} 52. Kh3 {[%emt 0:00:34]} Rb3 {[%emt 0:00:30]} 53. f6+ {[%emt 0:00:27]} Kf7 {[%emt 0:00:23]} 54. Rh8 {[%emt 0:00:25]} 1-0

[Event "EWIRCC 2019"]
[Site "Monte-Carlo"]
[Date "2019.12.01"]
[Round "9.7"]
[White "Mkrtchian, Lilit"]
[Black "Paehtz, Elisabeth"]
[Result "0-1"]
[ECO "A10"]
[WhiteElo "2402"]
[BlackElo "2484"]
[Annotator "ChessBase"]
[PlyCount "132"]
[EventDate "2019.11.28"]
[EventType "swiss"]
[EventCountry "MNC"]
[SourceTitle "playchess.com"]
[Source "ChessBase"]
[SourceQuality "1"]
[TimeControl "5400+30"]

1. c4 {[%emt 1:15:13]} b6 {[%emt 1:15:11]} 2. Nc3 {[%emt 0:00:24]} Bb7 {[%emt 0:00:21]} 3. e4 {[%emt 0:00:27]} e6 {[%emt 0:00:22]} 4. Nge2 {[%emt 0:01:34]} Nf6 {[%emt 0:01:51]} 5. e5 {[%emt 0:01:29]} Ne4 {[%emt 0:01:45]} 6. Nxe4 {[%emt 0:00:43]} Bxe4 {[%emt 0:00:21]} 7. Nc3 {[%emt 0:00:22]} Bb7 {[%emt 0:00:32]} 8. d4 {[%emt 0:01:04]} d6 {[%emt 0:00:42]} 9. exd6 {[%emt 0:05:08]} Bxd6 {[%emt 0:00:22]} 10. Be3 {[%emt 0:00:31]} Nd7 {[%emt 0:00:51]} 11. Qc2 {[%emt 0:00:49]} Nf6 {[%emt 0:01:00]} 12. f3 {[%emt 0:00:37]} O-O {[%emt 0:01:19]} 13. O-O-O {[%emt 0:00:23]} Qe7 {[%emt 0:00:39]} 14. Nb5 {[%emt 0:03:34]} a6 {[%emt 0:00:58]} 15. Nxd6 {[%emt 0:00:26]} cxd6 {[%emt 0:00:21]} 16. Bg5 {[%emt 0:00:42]} Rfc8 {[%emt 0:00:31]} 17. Kb1 {[%emt 0:00:31]} b5 {[%emt 0:00:28]} 18. Qb3 {[%emt 0:00:59]} Rab8 {[%emt 0:00:50]} 19. cxb5 {[%emt 0:00:52]} Bd5 {[%emt 0:00:22]} 20. Qb4 {[%emt 0:00:39]} axb5 {[%emt 0:00:37]} 21. a3 {[%emt 0:00:27]} h6 {[%emt 0:00:43]} 22. Bh4 {[%emt 0:00:35]} Bc4 {[%emt 0:00:34]} 23. Bd3 {[%emt 0:00:36]} Rc6 {[%emt 0:02:04]} 24. Bxf6 {[%emt 0:02:15]} Bxd3+ {[%emt 0:00:34]} 25. Rxd3 {[%emt 0:00:21]} Qxf6 {[%emt 0:00:21]} 26. Ka1 {[%emt 0:00:42]} Qf5 {[%emt 0:01:29]} 27. Rb3 {[%emt 0:01:02]} Qd5 {[%emt 0:00:29]} 28. Rd1 {[%emt 0:00:32]} Rc4 {[%emt 0:00:28]} 29. Qd2 {[%emt 0:00:33]} Rbc8 {[%emt 0:00:48]} 30. Qd3 {[%emt 0:00:39]} g6 {[%emt 0:02:09]} 31. Qe4 {[%emt 0:00:26]} Rc1+ {[%emt 0:02:12]} 32. Rxc1 {[%emt 0:00:20]} Rxc1+ {[%emt 0:00:21]} 33. Ka2 {[%emt 0:00:21]} Qc4 {[%emt 0:00:21]} 34. Qd3 {[%emt 0:01:17]} Qd5 {[%emt 0:02:35]} 35. Qxb5 {[%emt 0:00:25]} Qxd4 {[%emt 0:00:22]} 36. Qe2 {[%emt 0:00:41]} Kg7 {[%emt 0:00:46]} 37. Qd3 {[%emt 0:00:36]} Qg1 {[%emt 0:00:46]} 38. Rb7 {[%emt 0:00:21]} Ra1+ {[%emt 0:00:24]} 39. Kb3 {[%emt 0:00:21]} Rd1 {[%emt 0:01:29]} 40. Qc3+ {[%emt 0:00:23]} e5 {[%emt 0:00:30]} 41. Qc7 {[%emt 0:00:41]} Qe3+ {[%emt 0:00:29]} 42. Ka2 {[%emt 0:00:21]} Qf4 {[%emt 0:00:21]} 43. Rb8 {[%emt 0:00:36]} Qf5 {[%emt 0:00:41]} 44. Qc8 {[%emt 0:00:47]} Qb1+ {[%emt 0:00:42]} 45. Kb3 {[%emt 0:00:21]} Qd3+ {[%emt 0:01:00]} 46. Ka4 {[%emt 0:00:23]} Qd4+ {[%emt 0:00:24]} 47. b4 {[%emt 0:00:32]} Kf6 {[%emt 0:00:50]} 48. g4 {[%emt 0:00:47]} Kg5 {[%emt 0:00:22]} 49. Rb7 {[%emt 0:00:28]} Qd5 {[%emt 0:00:30]} 50. Rb5 {[%emt 0:00:30]} Qxf3 {[%emt 0:00:29]} 51. Qd8+ {[%emt 0:00:33]} Kxg4 {[%emt 0:00:26]} 52. Rb6 {[%emt 0:00:28]} Rd3 {[%emt 0:00:30]} 53. Qd7+ {[%emt 0:00:23]} Kh5 {[%emt 0:00:25]} 54. Rxd6 {[%emt 0:00:37]} Rxa3+ {[%emt 0:00:41]} 55. Kb5 {[%emt 0:00:21]} Qe2+ {[%emt 0:00:26]} 56. Kc5 {[%emt 0:00:26]} Qe3+ {[%emt 0:00:28]} 57. Kb5 {[%emt 0:00:23]} Ra7 {[%emt 0:00:31]} 58. Qc6 {[%emt 0:00:31]} Qe2+ {[%emt 0:00:26]} 59. Kc5 {[%emt 0:00:25]} Qc2+ {[%emt 0:00:25]} 60. Kb6 {[%emt 0:00:22]} Qxc6+ {[%emt 0:00:24]} 61. Rxc6 {[%emt 0:00:24]} Re7 {[%emt 0:00:22]} 62. b5 {[%emt 0:01:01]} e4 {[%emt 0:00:21]} 63. Rc1 {[%emt 0:00:35]} f5 {[%emt 0:00:23]} 64. Kc6 {[%emt 0:00:22]} e3 {[%emt 0:00:33]} 65. b6 {[%emt 0:00:22]} f4 {[%emt 0:00:24]} 66. b7 {[%emt 0:00:46]} Rxb7 {[%emt 0:00:33]} 0-1

[Event "EWIRCC 2019"]
[Site "Monte-Carlo"]
[Date "2019.12.01"]
[Round "9.8"]
[White "Osmak, Iulija"]
[Black "Daulyte-Cornette, Deimante"]
[Result "1-0"]
[ECO "A50"]
[WhiteElo "2401"]
[BlackElo "2405"]
[Annotator "NA"]
[PlyCount "79"]
[EventDate "2019.11.28"]
[EventType "swiss"]
[EventCountry "MNC"]
[SourceTitle "playchess.com"]
[Source "ChessBase"]
[SourceQuality "1"]
[TimeControl "5400+30"]

1. d4 {[%emt 1:15:11]} Nf6 {[%emt 1:15:12]} 2. c4 {[%emt 0:00:21]} b6 {[%emt 0:00:23]} 3. Nc3 {[%emt 0:00:25]} Bb7 {[%emt 0:00:21]} 4. f3 {[%emt 0:00:51]} d5 {[%emt 0:00:40]} 5. cxd5 {[%emt 0:00:23]} Nxd5 {[%emt 0:00:22]} 6. e4 {[%emt 0:00:22]} Nxc3 {[%emt 0:00:28]} 7. bxc3 {[%emt 0:00:21]} e5 {[%emt 0:00:31]} 8. Bb5+ {[%emt 0:01:17]} c6 {[%emt 0:01:20]} 9. Bc4 {[%emt 0:00:34]} exd4 {[%emt 0:00:34]} 10. cxd4 {[%emt 0:00:24]} Bb4+ {[%emt 0:00:31]} 11. Kf1 {[%emt 0:02:21]} O-O {[%emt 0:01:14]} 12. Ne2 {[%emt 0:00:24]} b5 {[%emt 0:02:05]} 13. Bb3 {[%emt 0:00:51]} c5 {[%emt 0:01:25]} 14. a3 {[%emt 0:00:45]} Ba5 {[%emt 0:00:25]} 15. dxc5 {[%emt 0:00:27]} Qf6 {[%emt 0:00:50]} 16. Be3 {[%emt 0:01:11]} Bxe4 {[%emt 0:03:16]} 17. Qd4 {[%emt 0:04:06]} Qxd4 {[%emt 0:00:52]} 18. Nxd4 {[%emt 0:00:43]} Bd3+ {[%emt 0:01:56]} 19. Kf2 {[%emt 0:00:22]} Na6 {[%emt 0:01:02]} 20. Rac1 {[%emt 0:00:46]} Rac8 {[%emt 0:01:44]} 21. Rhd1 {[%emt 0:00:39]} Bc4 {[%emt 0:00:53]} 22. Bxc4 {[%emt 0:00:49]} bxc4 {[%emt 0:00:22]} 23. Nf5 {[%emt 0:00:26]} Rc7 {[%emt 0:01:54]} 24. Rxc4 {[%emt 0:00:27]} g6 {[%emt 0:01:06]} 25. Nh6+ {[%emt 0:01:04]} Kg7 {[%emt 0:00:40]} 26. Ra4 {[%emt 0:00:29]} f5 {[%emt 0:02:06]} 27. Rxa5 {[%emt 0:00:24]} Nb8 {[%emt 0:00:31]} 28. Bf4 {[%emt 0:01:20]} Rb7 {[%emt 0:00:26]} 29. Rd2 {[%emt 0:00:51]} Nc6 {[%emt 0:00:30]} 30. Ra6 {[%emt 0:00:23]} Rc8 {[%emt 0:00:36]} 31. g4 {[%emt 0:00:44]} Nb8 {[%emt 0:00:39]} 32. Bxb8 {[%emt 0:01:22]} Rcxb8 {[%emt 0:00:39]} 33. g5 {[%emt 0:00:27]} Rc8 {[%emt 0:00:35]} 34. c6 {[%emt 0:00:29]} Rbc7 {[%emt 0:00:23]} 35. Rd7+ {[%emt 0:00:32]} Rxd7 {[%emt 0:00:34]} 36. cxd7 {[%emt 0:00:22]} Rd8 {[%emt 0:00:23]} 37. Rxa7 {[%emt 0:00:32]} Kf8 {[%emt 0:00:21]} 38. Rc7 {[%emt 0:00:46]} Ke7 {[%emt 0:00:25]} 39. a4 {[%emt 0:00:48]} Ra8 {[%emt 0:00:51]} 40. Nf7 {[%emt 0:00:34]} 1-0

[Event "EWIRCC 2019"]
[Site "Monte-Carlo"]
[Date "2019.12.01"]
[Round "9.9"]
[White "Kashlinskaya, Alina"]
[Black "Gaponenko, Inna"]
[Result "1/2-1/2"]
[ECO "D27"]
[WhiteElo "2486"]
[BlackElo "2427"]
[Annotator "ChessBase"]
[PlyCount "129"]
[EventDate "2019.11.28"]
[EventType "swiss"]
[EventCountry "MNC"]
[SourceTitle "playchess.com"]
[Source "ChessBase"]
[SourceQuality "1"]
[TimeControl "5400+30"]

1. d4 {[%emt 1:15:11]} d5 {[%emt 1:15:11]} 2. c4 {[%emt 0:00:22]} dxc4 {[%emt 0:00:21]} 3. Nf3 {[%emt 0:00:34]} Nf6 {[%emt 0:00:21]} 4. e3 {[%emt 0:00:22]} e6 {[%emt 0:00:21]} 5. Bxc4 {[%emt 0:00:23]} c5 {[%emt 0:00:22]} 6. O-O {[%emt 0:00:24]} Nc6 {[%emt 0:00:20]} 7. Nc3 {[%emt 0:00:34]} a6 {[%emt 0:00:22]} 8. Bb3 {[%emt 0:02:19]} Be7 {[%emt 0:03:58]} 9. dxc5 {[%emt 0:01:43]} Qxd1 {[%emt 0:00:28]} 10. Rxd1 {[%emt 0:00:22]} Bxc5 {[%emt 0:00:22]} 11. Bd2 {[%emt 0:00:33]} O-O {[%emt 0:00:44]} 12. Rac1 {[%emt 0:00:21]} Bd7 {[%emt 0:00:21]} 13. Nd5 {[%emt 0:01:37]} Ne4 {[%emt 0:06:01]} 14. Nf4 {[%emt 0:02:38]} Rfd8 {[%emt 0:01:09]} 15. Be1 {[%emt 0:01:15]} Be7 {[%emt 0:03:17]} 16. Bc2 {[%emt 0:01:54]} Nf6 {[%emt 0:00:23]} 17. h3 {[%emt 0:00:31]} Be8 {[%emt 0:00:27]} 18. g4 {[%emt 0:00:33]} Rxd1 {[%emt 0:00:29]} 19. Bxd1 {[%emt 0:01:05]} Rd8 {[%emt 0:00:40]} 20. Bb3 {[%emt 0:01:11]} Ne4 {[%emt 0:01:33]} 21. Bc2 {[%emt 0:00:25]} Nd6 {[%emt 0:00:24]} 22. Kg2 {[%emt 0:01:01]} h6 {[%emt 0:01:28]} 23. h4 {[%emt 0:01:22]} Nc4 {[%emt 0:00:40]} 24. Bc3 {[%emt 0:02:08]} Bb4 {[%emt 0:01:18]} 25. Bxb4 {[%emt 0:00:49]} Nxb4 {[%emt 0:00:22]} 26. Be4 {[%emt 0:00:23]} Nd6 {[%emt 0:00:44]} 27. Bb1 {[%emt 0:01:30]} Bc6 {[%emt 0:00:26]} 28. a3 {[%emt 0:00:21]} Nd5 {[%emt 0:00:31]} 29. Kg3 {[%emt 0:00:21]} Nxf4 {[%emt 0:00:56]} 30. Kxf4 {[%emt 0:00:21]} Bxf3 {[%emt 0:00:43]} 31. Kxf3 {[%emt 0:00:22]} Rc8 {[%emt 0:00:27]} 32. Rxc8+ {[%emt 0:01:45]} Nxc8 {[%emt 0:00:21]} 33. Ke4 {[%emt 0:00:24]} Kf8 {[%emt 0:00:21]} 34. Kd4 {[%emt 0:01:03]} Ke7 {[%emt 0:00:28]} 35. Be4 {[%emt 0:00:21]} Nd6 {[%emt 0:00:22]} 36. Bf3 {[%emt 0:00:24]} Kd7 {[%emt 0:00:27]} 37. Kc5 {[%emt 0:00:34]} Kc7 {[%emt 0:00:22]} 38. Bg2 {[%emt 0:00:33]} b6+ {[%emt 0:00:23]} 39. Kd4 {[%emt 0:00:22]} a5 {[%emt 0:00:32]} 40. f4 {[%emt 0:00:27]} f6 {[%emt 0:00:35]} 41. Bf1 {[%emt 0:00:33]} Nf7 {[%emt 0:00:29]} 42. Bc4 {[%emt 0:00:36]} Kd6 {[%emt 0:00:23]} 43. Ke4 {[%emt 0:00:46]} Nd8 {[%emt 0:00:25]} 44. b4 {[%emt 0:00:26]} axb4 {[%emt 0:00:24]} 45. axb4 {[%emt 0:00:21]} Nc6 {[%emt 0:00:23]} 46. b5 {[%emt 0:00:21]} Na5 {[%emt 0:00:36]} 47. Ba2 {[%emt 0:00:21]} Nb7 {[%emt 0:00:22]} 48. g5 {[%emt 0:00:46]} Nc5+ {[%emt 0:00:29]} 49. Kd4 {[%emt 0:00:25]} e5+ {[%emt 0:00:38]} 50. fxe5+ {[%emt 0:00:31]} fxe5+ {[%emt 0:00:22]} 51. Kc4 {[%emt 0:00:21]} hxg5 {[%emt 0:00:21]} 52. hxg5 {[%emt 0:00:21]} Ne4 {[%emt 0:01:20]} 53. g6 {[%emt 0:00:21]} Ke6 {[%emt 0:00:21]} 54. Kd3+ {[%emt 0:00:36]} Kf5 {[%emt 0:00:24]} 55. Be6+ {[%emt 0:00:50]} Kxe6 {[%emt 0:00:22]} 56. Kxe4 {[%emt 0:00:21]} Kd6 {[%emt 0:00:43]} 57. Kf5 {[%emt 0:00:32]} Kd5 {[%emt 0:00:37]} 58. e4+ {[%emt 0:00:22]} Kd6 {[%emt 0:00:52]} 59. Kg5 {[%emt 0:00:21]} Kc5 {[%emt 0:00:36]} 60. Kf5 {[%emt 0:00:46]} Kd6 {[%emt 0:00:23]} 61. Kg4 {[%emt 0:00:24]} Ke6 {[%emt 0:00:41]} 62. Kg5 {[%emt 0:00:22]} Ke7 {[%emt 0:00:21]} 63. Kf5 {[%emt 0:00:31]} Kd6 {[%emt 0:00:21]} 64. Kg4 {[%emt 0:00:22]} Ke6 {[%emt 0:00:39]} 65. Kg5 {[%emt 0:00:21]} 1/2-1/2

[Event "EWIRCC 2019"]
[Site "Monte-Carlo"]
[Date "2019.12.01"]
[Round "9.10"]
[White "Zaksaite, Salomeja"]
[Black "Chiburdanidze, Maia"]
[Result "0-1"]
[ECO "B12"]
[WhiteElo "2202"]
[BlackElo "2500"]
[Annotator "ChessBase"]
[PlyCount "66"]
[EventDate "2019.11.28"]
[EventType "swiss"]
[EventCountry "MNC"]
[SourceTitle "playchess.com"]
[Source "ChessBase"]
[SourceQuality "1"]
[TimeControl "5400+30"]

1. e4 {[%emt 1:15:11]} c6 {[%emt 1:30:30]} 2. d4 {[%emt 0:15:49]} d5 {[%emt 0:00:00]} 3. e5 {[%emt 0:00:00]} a6 {[%emt 0:00:00]} 4. Bd3 {[%emt 0:00:00]} c5 {[%emt 0:01:30]} 5. dxc5 {[%emt 0:00:00]} Qc7 {[%emt 0:00:00]} 6. Nf3 {[%emt 0:00:00]} Bg4 {[%emt 0:00:00]} 7. O-O {[%emt 0:00:00]} e6 {[%emt 0:00:00]} 8. a3 {[%emt 0:00:00]} Bxc5 {[%emt 0:00:00]} 9. Nbd2 {[%emt 0:00:00]} Nc6 {[%emt 0:00:00]} 10. Qe1 {[%emt 0:00:00]} Nge7 {[%emt 0:00:00]} 11. b4 {[%emt 0:00:00]} Ba7 {[%emt 0:00:00]} 12. Bb2 {[%emt 0:00:00]} b5 {[%emt 0:00:00]} 13. h3 {[%emt 0:00:37]} Bh5 {[%emt 0:00:00]} 14. g4 {[%emt 0:01:27]} Bg6 {[%emt 0:05:00]} 15. Qe2 Nc8 {[%emt 0:00:00]} 16. Kg2 {[%emt 0:01:26]} Nb6 {[%emt 0:00:00]} 17. Rad1 {[%emt 0:02:15]} Na4 {[%emt 0:00:00]} 18. Ba1 {[%emt 0:00:23]} Ne7 {[%emt 0:00:00]} 19. Nb1 {[%emt 0:01:02]} Rc8 {[%emt 0:00:00]} 20. Rfe1 {[%emt 0:00:31]} O-O {[%emt 0:00:00]} 21. Qd2 {[%emt 0:00:57]} Nc6 {[%emt 0:00:00]} 22. Nh4 {[%emt 0:00:32]} Qe7 {[%emt 0:00:00]} 23. Nxg6 {[%emt 0:00:25]} fxg6 {[%emt 0:00:00]} 24. Nc3 {[%emt 0:00:44]} Nxc3 {[%emt 0:00:00]} 25. Bxc3 {[%emt 0:00:21]} g5 {[%emt 0:00:06]} 26. a4 {[%emt 0:00:27]} d4 {[%emt 0:00:33]} 27. Bb2 {[%emt 0:00:37]} Nxb4 {[%emt 0:00:45]} 28. axb5 {[%emt 0:00:53]} axb5 {[%emt 0:00:22]} 29. Ra1 {[%emt 0:00:24]} Bc5 {[%emt 0:00:29]} 30. Bxb5 {[%emt 0:00:42]} Qb7+ {[%emt 0:00:27]} 31. Kg1 {[%emt 0:00:30]} Qxb5 {[%emt 0:00:24]} 32. Bxd4 {[%emt 0:00:31]} Nxc2 {[%emt 0:01:04]} 33. Reb1 {[%emt 0:00:31]} Nxd4 {[%emt 0:00:27]} 0-1